fUST/lending_fUST_20250618
["ID","MTS","AMOUNT","RATE_DAILY","PERIOD"]
[366401436,1750231848275,-645.06,0.00022575,6]
[366401437,1750231848284,-460.0,0.00022575,6]
[366401438,1750231848294,-460.0,0.00022575,6]
[366401439,1750231848304,-460.0,0.00022575,6]
[366401440,1750231848313,-374.69370843,0.00022575,6]
[366401441,1750231848323,-460.0,0.00022575,6]
[366401442,1750231848333,-460.0,0.00022575,6]
[366401443,1750231848342,-460.0,0.00022575,6]
[366401444,1750231848352,-460.0,0.00022575,6]
[366401445,1750231848362,-3292.14,0.00022575,6]
[366401446,1750231848371,-460.0,0.00022575,6]
[366401447,1750231848380,-460.0,0.00022575,6]
[366401448,1750231848390,-1166.69,0.00022575,6]
[366401449,1750231848399,-752.99,0.00022575,6]
[366401450,1750231848409,-1316.41,0.00022575,6]
[366401451,1750231848419,-567.76721111,0.0002259,7]
[366401452,1750231848428,-193.0,0.00022633,2]
[366401453,1750231848441,-587.0,0.00022633,2]
[366401454,1750231848451,-587.0,0.00022634,2]
[366401455,1750231848460,-165.52,0.00022684,6]
[366401456,1750231848470,-643.49,0.00022684,6]
[366401457,1750231848480,-460.0,0.00022684,6]
[366401458,1750231848490,-1625.78,0.00022684,6]
[366401459,1750231848500,-1085.1,0.00022684,6]
[366401460,1750231848509,-1859.13,0.00022684,6]
[366401461,1750231848519,-460.0,0.00022684,6]
[366401462,1750231848529,-1458.99,0.00022684,6]
[366401463,1750231848539,-1069.16,0.00022684,6]
[366401464,1750231848548,-507.45,0.00022684,6]
[366401465,1750231848558,-796.34,0.00022684,6]
[366401466,1750231848568,-492.91,0.00022684,6]
[366401467,1750231848578,-460.0,0.00022684,6]
[366401468,1750231848587,-460.0,0.00022684,6]
[366401469,1750231848598,-707.66,0.00022684,6]
[366401470,1750231848607,-460.0,0.00022684,6]
[366401471,1750231848617,-460.0,0.00022684,6]
[366401472,1750231848627,-460.0,0.00022684,6]
[366401473,1750231848636,-1115.34,0.00022684,6]
[366401474,1750231848645,-645.06,0.00022684,6]
[366401475,1750231848655,-460.0,0.00022684,6]
[366401476,1750231848665,-551.20287699,0.00022684,6]
[366401477,1750231848675,-460.0,0.00022684,6]
[366401478,1750231848684,-460.0,0.00022684,6]
[366401479,1750231848694,-460.0,0.00022684,6]
[366401480,1750231848704,-460.0,0.00022684,6]
[366401481,1750231848714,-354.44,0.00022684,6]
[366401482,1750231848723,-3292.14,0.00022684,6]
[366401483,1750231848733,-460.0,0.00022684,6]
[366401484,1750231848743,-460.0,0.00022684,6]
[366401485,1750231848752,-1166.69,0.00022684,6]
[366401486,1750231848762,-752.99,0.00022684,6]
[366401487,1750231848774,-1316.41,0.00022684,6]
[366401488,1750231848784,-465.0,0.00022729,2]
[366401489,1750231848797,-207.4,0.00022753,2]
[366401490,1750231848807,-5000.0,0.00022753,2]
[366401491,1750231848816,-1435.61248886,0.00022753,2]
[366401492,1750231848826,-500.0,0.00022753,2]
[366401493,1750231848836,-500.0,0.00022753,2]
[366401494,1750231848849,-500.0,0.00022753,2]
[366401495,1750231848859,-500.0,0.00022753,2]
[366401496,1750231848869,-500.0,0.00022753,2]
[366401497,1750231848879,-500.0,0.00022753,2]
[366401498,1750231848890,-500.0,0.00022753,2]
[366401499,1750231848900,-500.0,0.00022753,2]
[366401500,1750231848909,-445.89319755,0.00022753,2]
[366401501,1750231848919,-500.0,0.00022753,2]
[366401502,1750231848930,-500.0,0.00022753,2]
[366401503,1750231848940,-25000.0,0.00022753,2]
[366401504,1750231848950,-14837.74780356,0.00022753,2]
[366401505,1750231848960,-643.49,0.00022794,6]
[366401506,1750231848970,-460.0,0.00022794,6]
[366401507,1750231848980,-1625.78,0.00022794,6]
[366401508,1750231848995,-1085.1,0.00022794,6]
[366401509,1750231849004,-1859.13,0.00022794,6]
[366401510,1750231849014,-460.0,0.00022794,6]
[366401511,1750231849023,-1458.99,0.00022794,6]
[366401512,1750231849033,-1069.16,0.00022794,6]
[366401513,1750231849043,-507.45,0.00022794,6]
[366401514,1750231849052,-796.34,0.00022794,6]
[366401515,1750231849061,-492.91,0.00022794,6]
[366401516,1750231849071,-460.0,0.00022794,6]
[366401517,1750231849081,-408.90710223,0.00022794,6]
[366401518,1750231849091,-707.66,0.00022794,6]
[366401519,1750231849101,-460.0,0.00022794,6]
[366401520,1750231849111,-460.0,0.00022794,6]
[366401521,1750231849120,-460.0,0.00022794,6]
[366401522,1750231849130,-1115.34,0.00022794,6]
[366401523,1750231849140,-645.06,0.00022794,6]
[366401524,1750231849149,-460.0,0.00022794,6]
[366401525,1750231849159,-460.0,0.00022794,6]
[366401526,1750231849170,-496.04422134,0.00022794,6]
[366401527,1750231849180,-460.0,0.00022794,6]
[366401528,1750231849190,-460.0,0.00022794,6]
[366401529,1750231849200,-3292.14,0.00022794,6]
[366401530,1750231849210,-460.0,0.00022794,6]
[366401531,1750231849220,-460.0,0.00022794,6]
[366401532,1750231849230,-1166.69,0.00022794,6]
[366401533,1750231849239,-752.99,0.00022794,6]
[366401534,1750231849249,-1316.41,0.00022794,6]
[366401535,1750231849259,-567.76721111,0.00022797,7]
[366401536,1750231849269,-2351.0,0.00022853,2]
[366401537,1750231849279,-643.49,0.00022904,6]
[366401538,1750231849289,-460.0,0.00022904,6]
[366401539,1750231849298,-1625.78,0.00022904,6]
[366401540,1750231849308,-1085.1,0.00022904,6]
[366401541,1750231849318,-1859.13,0.00022904,6]
[366401542,1750231849328,-518.97,0.00022904,6]
[366401543,1750231849338,-1458.99,0.00022904,6]
[366401544,1750231849348,-1069.16,0.00022904,6]
[366401545,1750231849357,-507.45,0.00022904,6]
[366401546,1750231849367,-796.34,0.00022904,6]
[366401547,1750231849377,-492.91,0.00022904,6]
[366401548,1750231849386,-460.0,0.00022904,6]
[366401549,1750231849396,-707.66,0.00022904,6]
[366401550,1750231849405,-423.81,0.00022904,6]
[366401551,1750231849415,-460.0,0.00022904,6]
[366401552,1750231849425,-460.0,0.00022904,6]
[366401553,1750231849434,-1115.34,0.00022904,6]
[366401554,1750231849444,-645.06,0.00022904,6]
[366401555,1750231849453,-609.02,0.00022904,6]
[366401556,1750231849465,-151.0,0.00022904,7]
[366401557,1750231849474,-151.0,0.00022904,7]
[366401558,1750231849484,-184.7,0.00022904,6]
[366401559,1750231849494,-151.0,0.00022904,7]
[366401560,1750231849504,-460.0,0.00022904,6]
[366401561,1750231849514,-151.0,0.00022904,7]
[366401562,1750231849524,-460.0,0.00022904,6]
[366401563,1750231849534,-3292.14,0.00022904,6]
[366401564,1750231849544,-460.0,0.00022904,6]
[366401565,1750231849553,-151.0,0.00022904,7]
[366401566,1750231849563,-151.0,0.00022904,7]
[366401567,1750231849573,-460.0,0.00022904,6]
[366401568,1750231849582,-1166.69,0.00022904,6]
[366401569,1750231849591,-151.0,0.00022904,7]
[366401570,1750231849600,-151.0,0.00022904,7]
[366401571,1750231849611,-752.99,0.00022904,6]
[366401572,1750231849621,-154.573273,0.00022904,7]
[366401573,1750231849631,-1316.41,0.00022904,6]
[366401574,1750231849640,-567.76721111,0.00023003,8]
[366401575,1750231849649,-643.49,0.00023013,6]
[366401576,1750231849659,-460.0,0.00023013,6]
[366401577,1750231849669,-1625.78,0.00023013,6]
[366401578,1750231849678,-1085.1,0.00023013,6]
[366401579,1750231849688,-1859.13,0.00023013,6]
[366401580,1750231849698,-1458.99,0.00023013,6]
[366401581,1750231849708,-1069.16,0.00023013,6]
[366401582,1750231849718,-507.45,0.00023013,6]
[366401583,1750231849727,-796.34,0.00023013,6]
[366401584,1750231849738,-492.91,0.00023013,6]
[366401585,1750231849747,-460.0,0.00023013,6]
[366401586,1750231849757,-707.66,0.00023013,6]
[366401587,1750231849767,-460.0,0.00023013,6]
[366401588,1750231849777,-460.0,0.00023013,6]
[366401589,1750231849786,-1115.34,0.00023013,6]
[366401590,1750231849796,-645.06,0.00023013,6]
[366401591,1750231849811,-460.0,0.00023013,6]
[366401592,1750231849821,-460.0,0.00023013,6]
[366401593,1750231849831,-3292.14,0.00023013,6]
[366401594,1750231849845,-460.0,0.00023013,6]
[366401595,1750231849855,-1166.69,0.00023013,6]
[366401596,1750231849865,-460.0,0.00023013,6]
[366401597,1750231849875,-752.99,0.00023013,6]
[366401598,1750231849974,-1316.41,0.00023013,6]
[366401599,1750231849984,-151.0,0.00023068,7]
[366401600,1750231849993,-204.848032,0.00023068,7]
[366401601,1750231850003,-204.848032,0.00023068,7]
[366401602,1750231850012,-151.0,0.00023068,7]
[366401603,1750231850022,-151.0,0.00023068,7]
[366401604,1750231850032,-1500.0,0.00023068,2]
[366401605,1750231850041,-1500.0,0.00023068,2]
[366401606,1750231850051,-1800.0,0.00023068,2]
[366401607,1750231850061,-643.49,0.00023123,6]
[366401608,1750231850071,-460.0,0.00023123,6]
[366401609,1750231850080,-1625.78,0.00023123,6]
[366401610,1750231850090,-1085.1,0.00023123,6]
[366401611,1750231850100,-1859.13,0.00023123,6]
[366401612,1750231850109,-1458.99,0.00023123,6]
[366401613,1750231850119,-1069.16,0.00023123,6]
[366401614,1750231850128,-507.45,0.00023123,6]
[366401615,1750231850138,-796.34,0.00023123,6]
[366401616,1750231850147,-492.91,0.00023123,6]
[366401617,1750231850157,-460.0,0.00023123,6]
[366401618,1750231850167,-707.66,0.00023123,6]
[366401619,1750231850176,-460.0,0.00023123,6]
[366401620,1750231850186,-460.0,0.00023123,6]
[366401621,1750231850195,-1115.34,0.00023123,6]
[366401622,1750231850205,-645.06,0.00023123,6]
[366401623,1750231850215,-460.0,0.00023123,6]
[366401624,1750231850226,-460.0,0.00023123,6]
[366401625,1750231850236,-3292.14,0.00023123,6]
[366401626,1750231850246,-460.0,0.00023123,6]
[366401627,1750231850255,-1166.69,0.00023123,6]
[366401628,1750231850265,-460.0,0.00023123,6]
[366401629,1750231850274,-752.99,0.00023123,6]
[366401630,1750231850284,-160.0,0.0002317,2]
[366401631,1750231850293,-465.0,0.00023187,2]
[366401632,1750231850303,-429.78474178,0.00023199,2]
[366401633,1750231850312,-74523.4,0.000232,7]
[366401634,1750231850322,-151.0,0.000232,7]
[366401635,1750231850332,-151.0,0.000232,7]
[366401636,1750231850341,-151.0,0.000232,7]
[366401637,1750231850352,-151.0,0.000232,7]
[366401638,1750231850361,-151.317497,0.000232,7]
[366401639,1750231850371,-265.536988,0.000232,2]
[366401640,1750231850380,-265.536988,0.000232,2]
[366401641,1750231850390,-151.0,0.000232,7]
[366401642,1750231850400,-154.234901,0.000232,7]
[366401643,1750231850409,-151.0,0.000232,7]
[366401644,1750231850419,-1003.790933,0.000232,2]
[366401645,1750231850428,-1003.790933,0.000232,2]
[366401646,1750231850438,-151.0,0.000232,7]
[366401647,1750231850448,-151.0,0.000232,7]
[366401648,1750231850458,-567.76721111,0.0002321,8]
[366401649,1750231850467,-1905.9,0.00023219,2]
[366401650,1750231850477,-151.0,0.00023232,7]
[366401651,1750231850486,-151.0,0.00023232,7]
[366401652,1750231850496,-152.442833,0.00023232,7]
[366401653,1750231850506,-643.49,0.00023232,6]
[366401654,1750231850516,-460.0,0.00023232,6]
[366401655,1750231850526,-1625.78,0.00023232,6]
[366401656,1750231850536,-1085.1,0.00023232,6]
[366401657,1750231850545,-1859.13,0.00023232,6]
[366401658,1750231850555,-1458.99,0.00023232,6]
[366401659,1750231850564,-1069.16,0.00023232,6]
[366401660,1750231850574,-507.45,0.00023232,6]
[366401661,1750231850583,-796.34,0.00023232,6]
[366401662,1750231850592,-492.91,0.00023232,6]
[366401663,1750231850602,-460.0,0.00023232,6]
[366401664,1750231850611,-707.66,0.00023232,6]
[366401665,1750231850620,-460.0,0.00023232,6]
[366401666,1750231850631,-269.20986018,0.00023232,6]
[366401667,1750231850640,-1115.34,0.00023232,6]
[366401668,1750231850650,-645.06,0.00023232,6]
[366401669,1750231850660,-460.0,0.00023232,6]
[366401670,1750231850670,-460.0,0.00023232,6]
[366401671,1750231850679,-3292.14,0.00023232,6]
[366401672,1750231850689,-460.0,0.00023232,6]
[366401673,1750231850699,-1166.69,0.00023232,6]
[366401674,1750231850709,-474.6,0.00023232,6]
[366401675,1750231850719,-752.99,0.00023232,6]
[366401676,1750231850728,-5000.0,0.00023301,2]
[366401677,1750231850738,-500.59896885,0.00023307,2]
[366401678,1750231850747,-467.12007467,0.00023323,2]
[366401679,1750231850757,-643.49,0.00023342,6]
[366401680,1750231850767,-460.0,0.00023342,6]
[366401681,1750231850777,-1625.78,0.00023342,6]
[366401682,1750231850787,-1085.1,0.00023342,6]
[366401683,1750231850796,-1859.13,0.00023342,6]
[366401684,1750231850806,-1458.99,0.00023342,6]
[366401685,1750231850815,-1069.16,0.00023342,6]
[366401686,1750231850825,-507.45,0.00023342,6]
[366401687,1750231850835,-796.34,0.00023342,6]
[366401688,1750231850849,-492.91,0.00023342,6]
[366401689,1750231850858,-460.0,0.00023342,6]
[366401690,1750231850872,-707.66,0.00023342,6]
[366401691,1750231850885,-460.0,0.00023342,6]
[366401692,1750231850895,-1115.34,0.00023342,6]
[366401693,1750231850904,-645.06,0.00023342,6]
[366401694,1750231850914,-526.28733765,0.00023342,6]
[366401695,1750231850924,-460.0,0.00023342,6]
[366401696,1750231850938,-3292.14,0.00023342,6]
[366401697,1750231850949,-460.0,0.00023342,6]
[366401698,1750231850959,-1166.69,0.00023342,6]
[366401699,1750231850968,-752.99,0.00023342,6]
[366401700,1750231850978,-465.0,0.00023399,2]
[366401701,1750231850987,-567.76721111,0.00023417,9]
[366401702,1750231850997,-643.49,0.00023452,6]
[366401703,1750231851007,-460.0,0.00023452,6]
[366401704,1750231851017,-1625.78,0.00023452,6]
[366401705,1750231851027,-1085.1,0.00023452,6]
[366401706,1750231851036,-1859.13,0.00023452,6]
[366401707,1750231851046,-1458.99,0.00023452,6]
[366401708,1750231851056,-1069.16,0.00023452,6]
[366401709,1750231851066,-507.45,0.00023452,6]
[366401710,1750231851076,-796.34,0.00023452,6]
[366401711,1750231851086,-492.91,0.00023452,6]
[366401712,1750231851095,-460.0,0.00023452,6]
[366401713,1750231851105,-707.66,0.00023452,6]
[366401714,1750231851115,-460.0,0.00023452,6]
[366401715,1750231851124,-1115.34,0.00023452,6]
[366401716,1750231851134,-645.06,0.00023452,6]
[366401717,1750231851143,-460.0,0.00023452,6]
[366401718,1750231851153,-3292.14,0.00023452,6]
[366401719,1750231851163,-460.0,0.00023452,6]
[366401720,1750231851172,-1166.69,0.00023452,6]
[366401721,1750231851183,-752.99,0.00023452,6]
[366401722,1750231851193,-465.0,0.0002348,2]
[366401723,1750231851202,-429.78474178,0.00023527,2]
[366401724,1750231851212,-151.0,0.00023561,7]
[366401725,1750231851222,-151.0,0.00023561,7]
[366401726,1750231851231,-151.0,0.00023561,7]
[366401727,1750231851241,-151.0,0.00023561,7]
[366401728,1750231851251,-151.0,0.00023561,7]
[366401729,1750231851261,-151.0,0.00023561,7]
[366401730,1750231851272,-151.0,0.00023561,7]
[366401731,1750231851281,-643.49,0.00023561,6]
[366401732,1750231851291,-460.0,0.00023561,6]
[366401733,1750231851301,-1625.78,0.00023561,6]
[366401734,1750231851310,-1085.1,0.00023561,6]
[366401735,1750231851320,-1859.13,0.00023561,6]
[366401736,1750231851330,-1458.99,0.00023561,6]
[366401737,1750231851340,-1069.16,0.00023561,6]
[366401738,1750231851349,-507.45,0.00023561,6]
[366401739,1750231851359,-796.34,0.00023561,6]
[366401740,1750231851369,-492.91,0.00023561,6]
[366401741,1750231851378,-460.0,0.00023561,6]
[366401742,1750231851388,-707.66,0.00023561,6]
[366401743,1750231851397,-460.0,0.00023561,6]
[366401744,1750231851407,-1115.34,0.00023561,6]
[366401745,1750231851416,-645.06,0.00023561,6]
[366401746,1750231851425,-151.0,0.00023561,7]
[366401747,1750231851435,-154.454846,0.00023561,7]
[366401748,1750231851444,-151.0,0.00023561,7]
[366401749,1750231851454,-460.0,0.00023561,6]
[366401750,1750231851464,-3292.14,0.00023561,6]
[366401751,1750231851474,-460.0,0.00023561,6]
[366401752,1750231851483,-151.0,0.00023561,7]
[366401753,1750231851493,-269.831304,0.00023561,7]
[366401754,1750231851502,-1166.69,0.00023561,6]
[366401755,1750231851511,-151.0,0.00023561,7]
[366401756,1750231851521,-752.99,0.00023561,6]
[366401757,1750231851531,-1185.25,0.000236,7]
[366401758,1750231851540,-2000.0,0.00023616,2]
[366401759,1750231851550,-2000.0,0.00023616,2]
[366401760,1750231851559,-2400.0,0.00023616,2]
[366401761,1750231851569,-567.76721111,0.00023624,9]
[366401762,1750231851578,-643.49,0.00023671,6]
[366401763,1750231851588,-320.75,0.00023671,6]
[366401764,1750231851598,-1625.78,0.00023671,6]
[366401765,1750231851608,-1085.1,0.00023671,6]
[366401766,1750231851617,-1859.13,0.00023671,6]
[366401767,1750231851627,-1458.99,0.00023671,6]
[366401768,1750231851636,-1069.16,0.00023671,6]
[366401769,1750231851646,-507.45,0.00023671,6]
[366401770,1750231851657,-796.34,0.00023671,6]
[366401771,1750231851666,-492.91,0.00023671,6]
[366401772,1750231851675,-460.0,0.00023671,6]
[366401773,1750231851685,-707.66,0.00023671,6]
[366401774,1750231851694,-460.0,0.00023671,6]
[366401775,1750231851704,-1115.34,0.00023671,6]
[366401776,1750231851713,-645.06,0.00023671,6]
[366401777,1750231851723,-460.0,0.00023671,6]
[366401778,1750231851732,-3292.14,0.00023671,6]
[366401779,1750231851741,-460.0,0.00023671,6]
[366401780,1750231851751,-1166.69,0.00023671,6]
[366401781,1750231851760,-752.99,0.00023671,6]
[366401782,1750231851770,-250.0,0.00023682,2]
[366401783,1750231851779,-500.0,0.00023707,2]
[366401784,1750231851789,-429.78474178,0.00023714,2]
[366401785,1750231851875,-150.0,0.00023761,2]
[366401786,1750231851885,-643.49,0.0002378,6]
[366401787,1750231851895,-1625.78,0.0002378,6]
[366401788,1750231851905,-1085.1,0.0002378,6]
[366401789,1750231851914,-1859.13,0.0002378,6]
[366401790,1750231851923,-1458.99,0.0002378,6]
[366401791,1750231851933,-1069.16,0.0002378,6]
[366401792,1750231851942,-507.45,0.0002378,6]
[366401793,1750231851951,-796.34,0.0002378,6]
[366401794,1750231851960,-492.91,0.0002378,6]
[366401795,1750231851969,-460.0,0.0002378,6]
[366401796,1750231851979,-151.0,0.0002378,7]
[366401797,1750231851989,-204.848032,0.0002378,7]
[366401798,1750231851998,-204.848032,0.0002378,7]
[366401799,1750231852007,-707.66,0.0002378,6]
[366401800,1750231852016,-151.0,0.0002378,7]
[366401801,1750231852025,-151.0,0.0002378,7]
[366401802,1750231852035,-460.0,0.0002378,6]
[366401803,1750231852044,-1115.34,0.0002378,6]
[366401804,1750231852054,-645.06,0.0002378,6]
[366401805,1750231852063,-460.0,0.0002378,6]
[366401806,1750231852073,-3292.14,0.0002378,6]
[366401807,1750231852082,-460.0,0.0002378,6]
[366401808,1750231852092,-1166.69,0.0002378,6]
[366401809,1750231852101,-752.99,0.0002378,6]
[366401810,1750231852111,-567.76721111,0.00023831,10]
[366401811,1750231852120,-5000.0,0.00023849,2]
[366401812,1750231852129,-643.49,0.0002389,6]
[366401813,1750231852139,-1625.78,0.0002389,6]
[366401814,1750231852149,-1085.1,0.0002389,6]
[366401815,1750231852158,-1859.13,0.0002389,6]
[366401816,1750231852168,-1458.99,0.0002389,6]
[366401817,1750231852177,-1069.16,0.0002389,6]
[366401818,1750231852186,-507.45,0.0002389,6]
[366401819,1750231852196,-796.34,0.0002389,6]
[366401820,1750231852206,-492.91,0.0002389,6]
[366401821,1750231852216,-283.12,0.0002389,6]
[366401822,1750231852225,-707.66,0.0002389,6]
[366401823,1750231852235,-460.0,0.0002389,6]
[366401824,1750231852245,-1115.34,0.0002389,6]
[366401825,1750231852254,-645.06,0.0002389,6]
[366401826,1750231852264,-460.0,0.0002389,6]
[366401827,1750231852273,-3292.14,0.0002389,6]
[366401828,1750231852282,-460.0,0.0002389,6]
[366401829,1750231852292,-1166.69,0.0002389,6]
[366401830,1750231852301,-752.99,0.0002389,6]
[366401831,1750231852311,-2670.84,0.000239,7]
[366401832,1750231852320,-639.62647135,0.000239,2]
[366401833,1750231852330,-601.73985976,0.00023904,2]
[366401834,1750231852339,-6561.97605,0.00023911,4]
[366401835,1750231852349,-859.44720915,0.00023912,12]
[366401836,1750231852359,-500.0,0.00023969,2]
[366401837,1750231852368,-158.80186321,0.00023973,2]
[366401838,1750231852377,-30093.0,0.00024,2]
[366401839,1750231852387,-86979.28,0.00024,2]
[366401840,1750231852603,-151.0,0.00024,7]
[366401841,1750231852613,-152.920919,0.00024,7]
[366401842,1750231852623,-151.853989,0.00024,7]
[366401843,1750231852634,-163.637001,0.00024,7]
[366401844,1750231852643,-153.109017,0.00024,7]
[366401845,1750231852652,-151.0,0.00024,7]
[366401846,1750231852661,-294.162358,0.00024,7]
[366401847,1750231852671,-151.0,0.00024,7]
[366401848,1750231852680,-151.0,0.00024,7]
[366401849,1750231852690,-151.790997,0.00024,7]
[366401850,1750231852700,-153.707783,0.00024,7]
[366401851,1750231852709,-151.0,0.00024,7]
[366401852,1750231852718,-151.0,0.00024,7]
[366401853,1750231852729,-151.0,0.00024,7]
[366401854,1750231852738,-151.0,0.00024,7]
[366401855,1750231852747,-152.685085,0.00024,7]
[366401856,1750231852756,-151.0,0.00024,7]
[366401857,1750231852766,-151.883194,0.00024,7]
[366401858,1750231852775,-160.0,0.00024,7]
[366401859,1750231852785,-643.49,0.00024,6]
[366401860,1750231852794,-1625.78,0.00024,6]
[366401861,1750231852804,-151.0,0.00024,7]
[366401862,1750231852813,-1085.1,0.00024,6]
[366401863,1750231852823,-1859.13,0.00024,6]
[366401864,1750231852832,-151.0,0.00024,7]
[366401865,1750231852845,-265.536988,0.00024,2]
[366401866,1750231852855,-1458.99,0.00024,6]
[366401867,1750231852864,-265.536988,0.00024,2]
[366401868,1750231852874,-1069.16,0.00024,6]
[366401869,1750231852882,-835.98428123,0.00024,7]
[366401870,1750231852894,-507.45,0.00024,6]
[366401871,1750231852904,-796.34,0.00024,6]
[366401872,1750231852913,-492.91,0.00024,6]
[366401873,1750231852924,-10029.25206221,0.00024,2]
[366401874,1750231852933,-151.0,0.00024,7]
[366401875,1750231852942,-157.999999,0.00024,2]
[366401876,1750231852951,-707.66,0.00024,6]
[366401877,1750231852959,-229.98435572,0.00024,7]
[366401878,1750231852969,-460.0,0.00024,6]
[366401879,1750231852978,-1003.790933,0.00024,2]
[366401880,1750231852987,-1115.34,0.00024,6]
[366401881,1750231852996,-645.06,0.00024,6]
[366401882,1750231853005,-1003.790933,0.00024,2]
[366401883,1750231853014,-151.0,0.00024,7]
[366401884,1750231853024,-151.0,0.00024,7]
[366401885,1750231853033,-494.61,0.00024,6]
[366401886,1750231853042,-151.0,0.00024,7]
[366401887,1750231853051,-3292.14,0.00024,6]
[366401888,1750231853060,-272.96,0.00024,6]
[366401889,1750231853069,-151.0,0.00024,7]
[366401890,1750231853084,-1166.69,0.00024,6]
[366401891,1750231853093,-151.0,0.00024,7]
[366401892,1750231853102,-752.99,0.00024,6]
[366401893,1750231853112,-567.76721111,0.00024038,10]
[366401894,1750231853121,-429.78474178,0.00024054,2]
[366401895,1750231853130,-643.49,0.00024109,6]
[366401896,1750231853139,-1625.78,0.00024109,6]
[366401897,1750231853149,-1085.1,0.00024109,6]
[366401898,1750231853158,-1859.13,0.00024109,6]
[366401899,1750231853167,-1458.99,0.00024109,6]
[366401900,1750231853177,-1069.16,0.00024109,6]
[366401901,1750231853186,-507.45,0.00024109,6]
[366401902,1750231853195,-796.34,0.00024109,6]
[366401903,1750231853204,-492.91,0.00024109,6]
[366401904,1750231853213,-707.66,0.00024109,6]
[366401905,1750231853222,-460.0,0.00024109,6]
[366401906,1750231853231,-1115.34,0.00024109,6]
[366401907,1750231853241,-645.06,0.00024109,6]
[366401908,1750231853250,-3292.14,0.00024109,6]
[366401909,1750231853259,-1166.69,0.00024109,6]
[366401910,1750231853268,-752.99,0.00024109,6]
[366401911,1750231853278,-215.0738,0.00024122,2]
[366401912,1750231853288,-500.0,0.00024154,2]
[366401913,1750231853298,-2500.0,0.00024164,2]
[366401914,1750231853307,-2500.0,0.00024164,2]
[366401915,1750231853317,-3000.0,0.00024164,2]
[366401916,1750231853327,-429.78474178,0.00024184,2]
[366401917,1750231853337,-467.12007467,0.00024197,2]
[366401918,1750231853346,-151.0,0.00024219,7]
[366401919,1750231853356,-151.0,0.00024219,7]
[366401920,1750231853365,-151.249189,0.00024219,7]
[366401921,1750231853375,-151.0,0.00024219,7]
[366401922,1750231853384,-151.0,0.00024219,7]
[366401923,1750231853394,-151.0,0.00024219,7]
[366401924,1750231853403,-233.641092,0.00024219,7]
[366401925,1750231853412,-643.49,0.00024219,6]
[366401926,1750231853422,-1625.78,0.00024219,6]
[366401927,1750231853431,-1085.1,0.00024219,6]
[366401928,1750231853440,-1859.13,0.00024219,6]
[366401929,1750231853451,-1458.99,0.00024219,6]
[366401930,1750231853461,-1069.16,0.00024219,6]
[366401931,1750231853471,-507.45,0.00024219,6]
[366401932,1750231853480,-796.34,0.00024219,6]
[366401933,1750231853489,-492.91,0.00024219,6]
[366401934,1750231853498,-204.848032,0.00024219,7]
[366401935,1750231853507,-204.848032,0.00024219,7]